bitfinex/quotes_SOLUSD_20241101
["timestamp","ask_amount","ask_price","bid_price","bid_amount"]
[1730479578874,0.6134955,166.15,166.14,69.41030508]
[1730479579373,0.6134955,166.15,166.14,75.42930508]
[1730479579574,0.6134955,166.15,166.14,75.55479508]
[1730479579794,0.6134955,166.15,166.14,75.42930508]
[1730479580101,0.6134955,166.15,166.14,69.28481508]
[1730479580500,0.6134955,166.15,166.12,15.7698]
[1730479580501,0.6134955,166.15,166.12,45.50793108]
[1730479580675,6.6320955,166.15,166.13,23.776884]
[1730479581002,0.6134955,166.15,166.13,23.776884]
[1730479581570,0.6134955,166.15,166.13,27.83594657]
[1730479582001,0.6134955,166.15,166.09,51.61283057]
[1730479582002,27.83594657,166.14,166.09,51.61283057]
[1730479582285,6.6321955,166.15,166.06,6.0621]
[1730479582286,27.83594657,166.11,166.06,33.89804657]
[1730479582473,27.83594657,166.13,166.08,27.83594657]
[1730479582667,6.6321955,166.15,166.11,27.83594657]
[1730479582891,6.6321955,166.15,166.07,0.12549]
[1730479583591,6.6321955,166.15,166.08,23.776884]
[1730479583793,6.6321955,166.15,166.08,29.797984]
[1730479584007,6.6321955,166.15,166.11,27.83594657]
[1730479584171,27.83594657,166.14,166.09,27.83594657]
[1730479584372,27.83594657,166.12,166.08,23.776884]
[1730479584590,27.83594657,166.12,166.07,27.83594657]
[1730479584984,27.83594657,166.13,166.07,27.83594657]
[1730479586082,27.83594657,166.13,166.08,23.776884]
[1730479586284,6.0197,166.12,166.08,23.776884]
[1730479586470,6.0197,166.12,166.08,51.61283057]
[1730479587071,6.0197,166.12,166.07,51.61283057]
[1730479588487,27.83594657,166.11,166.07,23.776884]
[1730479588691,27.83594657,166.08,166.03,27.83594657]
[1730479588884,27.83594657,166.07,166.02,27.83594657]
[1730479589087,21.069,166.12,166.03,27.83594657]
[1730479589088,27.83594657,166.09,166.03,27.83594657]
[1730479589396,27.83594657,166.08,166.03,27.83594657]
[1730479589697,27.83594657,166.09,166.04,27.83594657]
[1730479590081,27.83594657,166.08,166.03,27.83594657]
[1730479590788,27.83594657,166.05,166.01,6.26768128]
[1730479590996,27.83594657,166.04,165.98,27.83594657]
[1730479591174,27.83594657,166.02,165.97,33.92544657]
[1730479591489,21.0753,166.07,165.97,6.27087522]
[1730479591490,27.83594657,165.99,165.97,6.27087522]
[1730479591689,21.0753,166.07,165.97,6.27087522]
[1730479591885,27.83594657,166.0,165.97,6.27087522]
[1730479592388,27.83594657,166.01,165.97,6.27087522]
[1730479592915,33.85974657,166.01,165.97,6.27087522]
[1730479593998,6.0238,166.01,165.97,6.27087522]
[1730479594382,27.83594657,166.03,165.98,27.83594657]
[1730479594576,27.83594657,166.04,165.99,27.83594657]
[1730479594782,27.83594657,166.05,166.0,27.83594657]
[1730479594982,27.83594657,166.06,166.01,27.83594657]
[1730479595397,27.83594657,166.05,166.0,23.776884]
[1730479595696,27.83594657,166.06,166.01,27.83594657]
[1730479595904,27.83594657,166.06,166.0,51.61283057]
[1730479596110,27.83594657,166.06,166.01,27.83594657]
[1730479596281,21.0728,166.09,166.01,27.83594657]
[1730479596282,27.83594657,166.07,166.01,27.83594657]
[1730479596782,6.0215,166.08,166.04,27.83594657]
[1730479596976,15.0493,166.12,166.01,21.0829]
[1730479596977,27.83594657,166.12,166.06,27.83594657]
[1730479597192,6.0201,166.11,166.07,27.83594657]
[1730479597500,27.83594657,166.12,166.07,27.83594657]
[1730479597501,6.0198,166.12,166.07,27.83594657]
[1730479598186,33.85544657,166.13,166.08,27.83594657]
[1730479598389,34.46834207,166.15,166.09,27.83594657]
[1730479598592,27.83594657,166.14,166.09,27.83594657]
[1730479598788,6.0193,166.13,166.09,27.83594657]
[1730479598995,6.0193,166.13,166.06,15.0539]
[1730479598996,27.83594657,166.11,166.06,27.83594657]
[1730479599190,27.83594657,166.11,166.05,71.61283057]
[1730479599703,6.0193,166.13,166.06,27.83594657]
[1730479599704,27.83594657,166.12,166.06,27.83594657]
[1730479600002,27.83594657,166.11,166.06,27.83594657]
[1730479600192,27.83594657,166.09,166.05,23.776884]
[1730479600911,27.83594657,166.11,166.06,27.83594657]
[1730479601107,33.85494657,166.14,166.09,27.83594657]
[1730479601714,27.83594657,166.13,166.08,27.83594657]
[1730479602085,6.0197,166.12,166.07,27.83594657]
[1730479602388,27.83594657,166.1,166.05,66.66853057]
[1730479602900,27.83594657,166.11,166.06,27.83594657]
[1730479604099,27.83594657,166.11,166.05,72.69073057]
[1730479604296,27.83594657,166.1,166.05,72.69073057]
[1730479605387,27.83594657,166.1,166.04,27.83594657]
[1730479605588,27.83594657,166.07,166.02,33.87454657]
[1730479605789,27.83594657,166.09,166.03,27.83594657]
[1730479605989,21.0677,166.13,166.05,27.83594657]
[1730479605990,27.83594657,166.1,166.05,27.83594657]
[1730479606189,27.83594657,166.11,166.06,27.83594657]
[1730479606390,6.0197,166.12,166.08,27.83594657]
[1730479606592,6.0197,166.12,166.07,27.83594657]
[1730479606593,33.85564657,166.12,166.07,27.83594657]
[1730479606896,0.6134955,166.15,166.12,23.776884]
[1730479607091,0.6134955,166.15,166.13,27.83594657]
[1730479607635,6.6321955,166.15,166.13,27.83594657]
[1730479607799,0.6134955,166.15,166.14,27.83594657]
[1730479608288,0.6134955,166.15,166.14,57.63183057]
[1730479609801,0.6134955,166.15,166.14,57.88281057]
[1730479610209,0.6134955,166.15,166.14,77.88281057]
[1730479612198,0.6134955,166.15,166.14,51.61283057]
[1730479612399,0.6134955,166.15,166.14,57.63183057]
[1730479614220,0.6134955,166.15,166.14,51.61283057]
[1730479614913,0.6134955,166.15,166.13,51.61283057]
[1730479615616,0.6134955,166.15,166.14,27.83594657]
[1730479616301,0.6134955,166.15,166.13,38.825284]
[1730479616615,0.6134955,166.15,166.12,27.83594657]
[1730479616999,0.6134955,166.15,166.13,27.83594657]
[1730479618021,0.6134955,166.15,166.14,27.83594657]
[1730479619424,0.6134955,166.15,166.13,51.61283057]
[1730479620203,0.6134955,166.15,166.13,57.63213057]
[1730479620603,0.6134955,166.15,166.14,27.83594657]
[1730479621425,0.6134955,166.15,166.13,29.796184]
[1730479621613,0.6134955,166.15,166.14,27.83594657]
[1730479621805,0.6134955,166.15,166.14,51.61283057]
[1730479622328,28.44944207,166.15,166.14,23.776884]
[1730479622537,28.44944207,166.15,166.08,6.2701858]
[1730479622819,21.6787955,166.15,166.0,18.09118417]
[1730479623018,27.83594657,166.04,166.0,18.09118417]
[1730479623205,27.83594657,166.04,166.0,22.88237849]
[1730479623406,27.83594657,166.03,166.01,15.0591]
[1730479623601,27.83594657,166.04,166.01,15.0591]
[1730479623802,27.83594657,166.04,166.01,21.0828]
[1730479624019,6.3692,166.11,166.01,21.0828]
[1730479624020,27.83594657,166.07,166.02,27.83594657]
[1730479624223,27.83594657,166.05,166.01,21.0828]
[1730479624526,27.83594657,166.04,166.01,21.0828]
[1730479624832,27.83594657,166.03,166.01,21.0828]
[1730479625133,27.83594657,166.04,166.01,21.0828]
[1730479625329,27.83594657,166.04,166.02,0.12549]
[1730479625650,27.83594657,166.06,166.02,0.12549]
[1730479625929,27.83594657,166.05,166.02,0.12549]
[1730479626231,27.83594657,166.05,166.02,23.902374]
[1730479626432,27.83594657,166.05,166.03,6.023]
[1730479626631,27.83594657,166.05,166.03,21.0805]
[1730479626832,27.83594657,166.05,166.03,44.857384]
[1730479627016,27.83594657,166.06,166.03,21.0805]
[1730479627329,27.83594657,166.05,166.03,21.0805]
[1730479628330,27.83594657,166.06,166.03,21.0805]
[1730479628632,27.83594657,166.04,166.02,29.800184]
[1730479628820,27.83594657,166.03,166.01,23.776884]
[1730479630223,27.83594657,166.03,166.01,29.800284]
[1730479630930,27.83594657,166.02,166.01,23.776884]
[1730479631309,27.83594657,166.02,165.97,36.10021078]
[1730479631622,27.83594657,165.98,165.97,1.03731078]
[1730479632127,33.86104657,165.98,165.96,6.27918456]
[1730479632341,27.83594657,165.97,165.96,6.27918456]
[1730479634020,27.83594657,165.98,165.96,6.27918456]
[1730479634218,27.83594657,165.99,165.96,6.27918456]
[1730479634620,27.83594657,166.0,165.96,12.30468456]
[1730479634838,27.83594657,165.98,165.96,6.27918456]
[1730479635016,27.83594657,165.97,165.96,6.27918456]
[1730479636121,27.83594657,165.97,165.9,6.0275]
[1730479636339,27.83594657,165.94,165.9,6.0275]
[1730479636541,27.83594657,165.94,165.9,21.0968]
[1730479636737,27.83594657,165.97,165.92,27.83594657]
[1730479636930,6.0233,166.02,165.94,27.83594657]
[1730479637137,27.83594657,166.0,165.94,27.83594657]
[1730479637444,27.83594657,165.99,165.94,27.83594657]
[1730479637821,27.83594657,166.0,165.95,23.776884]
[1730479638021,27.83594657,166.02,165.97,27.83594657]
[1730479638220,27.83594657,166.03,165.97,27.83594657]
[1730479638441,27.83594657,166.02,165.97,33.86104657]
[1730479638838,27.83594657,166.05,166.0,27.83594657]
[1730479639139,27.83594657,166.05,165.99,27.83594657]
[1730479639329,6.0219,166.06,165.97,48.92394657]
[1730479639330,27.83594657,166.03,165.97,48.92394657]
[1730479640162,27.83594657,166.0,165.97,15.0629]
[1730479640520,27.83594657,165.99,165.95,6.0258]
[1730479640939,27.83594657,166.0,165.95,33.86174657]
[1730479641154,15.0547,166.06,165.95,33.86174657]
[1730479641155,33.85894657,166.03,165.98,27.83594657]
[1730479641441,33.85854657,166.05,166.0,27.83594657]
[1730479641657,33.85854657,166.05,165.96,23.776884]
[1730479641658,34.29404657,166.09,166.03,27.83594657]
[1730479641827,6.0209,166.09,166.04,27.83594657]
[1730479642140,6.4417,166.13,165.96,23.776884]
[1730479642141,33.85564657,166.12,166.07,27.83594657]
[1730479642340,33.85564657,166.12,166.07,33.85744657]
[1730479642644,27.83594657,166.14,166.09,27.83594657]
[1730479642955,27.83594657,166.13,166.07,33.85744657]
[1730479643440,27.83594657,166.12,166.07,48.91124657]
[1730479644249,27.83594657,166.1,166.05,51.61283057]
[1730479644744,27.83594657,166.08,166.04,23.776884]
[1730479644949,27.83594657,166.06,166.03,23.776884]
[1730479645132,27.83594657,166.05,166.0,42.89524657]
[1730479645442,27.83594657,166.05,165.87,19.15846544]
[1730479645443,27.83594657,166.01,165.94,39.86894657]
[1730479645644,16.5444,166.07,165.94,12.033]
[1730479645855,33.86044657,165.99,165.94,12.033]
[1730479646025,33.86044657,165.99,165.93,42.90244657]
[1730479646026,27.83594657,165.97,165.93,15.0665]
[1730479646226,27.83594657,165.97,165.92,27.83594657]
[1730479646455,6.0245,165.99,165.92,6.0268]
[1730479646456,27.83594657,165.96,165.92,6.0268]
[1730479646755,27.83594657,165.97,165.92,33.86274657]
[1730479647247,33.86044657,165.99,165.93,27.83594657]
[1730479647451,27.83594657,165.98,165.93,27.83594657]
[1730479647824,27.83594657,165.98,165.93,33.86244657]
[1730479648051,27.83594657,166.01,165.95,27.83594657]
[1730479648220,27.83594657,166.01,165.94,23.776884]
[1730479648221,27.83594657,166.01,165.96,27.83594657]
[1730479648433,27.83594657,166.0,165.96,23.776884]
[1730479648954,27.83594657,166.01,165.96,23.776884]
[1730479649133,33.85964657,166.01,165.96,57.63833057]
[1730479649455,27.83594657,166.01,165.96,57.63833057]
[1730479650249,27.83594657,166.02,165.97,27.83594657]
[1730479650438,27.83594657,166.04,165.98,27.83594657]
[1730479652348,27.83594657,166.03,165.98,27.83594657]
[1730479652546,27.83594657,166.02,165.97,23.776884]
[1730479653552,27.83594657,166.04,165.98,48.92274657]
[1730479653731,33.85784657,166.06,166.0,27.83594657]
[1730479653934,6.0216,166.07,166.02,27.83594657]
[1730479654131,6.0216,166.07,166.03,27.83594657]
[1730479654348,33.85754657,166.07,166.02,27.83594657]
[1730479654553,27.83594657,166.06,166.01,27.83594657]
[1730479655533,33.85804657,166.06,166.01,27.83594657]
[1730479656253,33.85804657,166.06,166.01,23.776884]
[1730479656448,33.85804657,166.06,166.01,51.61283057]
[1730479656861,27.83594657,166.08,166.03,27.83594657]
[1730479657040,27.83594657,166.07,166.01,23.776884]
[1730479657237,27.83594657,166.07,166.02,27.83594657]
[1730479657842,33.85744657,166.08,166.03,23.776884]
[1730479658056,6.0215,166.08,166.03,57.63573057]
[1730479658439,33.85744657,166.08,166.03,57.63573057]
[1730479658939,33.85744657,166.08,166.03,29.799784]
[1730479659329,33.85744657,166.08,166.03,57.63573057]
[1730479660034,27.83594657,166.07,166.03,29.799784]
[1730479660444,27.83594657,166.06,166.0,48.92014657]
[1730479661850,33.85784657,166.06,166.01,23.776884]
[1730479662062,27.83594657,166.05,166.0,48.92014657]
[1730479662262,15.0511,166.1,166.02,27.83594657]
[1730479662263,27.83594657,166.07,166.02,27.83594657]
[1730479662641,27.83594657,166.05,166.0,42.89614657]
[1730479662858,27.83594657,166.01,165.96,15.0631]
[1730479663757,27.83594657,166.0,165.96,15.0631]
[1730479663962,27.83594657,166.08,165.94,21.89410701]
[1730479663963,27.83594657,165.97,165.94,6.27470701]
[1730479664147,27.83594657,165.98,165.92,27.83594657]
[1730479664460,27.83594657,165.98,165.93,33.86244657]
[1730479664652,27.83594657,165.98,165.91,7.31643002]
[1730479664653,27.83594657,165.97,165.92,27.83594657]
[1730479665660,27.83594657,165.97,165.93,23.776884]
[1730479665844,27.83594657,166.01,165.96,23.776884]
[1730479666039,27.83594657,166.05,165.99,27.83594657]
[1730479666245,33.85744657,166.07,166.02,27.83594657]
[1730479666667,33.85744657,166.07,166.01,27.83594657]
[1730479667159,27.83594657,166.06,166.01,27.83594657]
[1730479667359,6.022,166.06,166.02,27.83594657]
[1730479667943,27.83594657,166.08,166.02,27.83594657]
[1730479668144,27.83594657,166.08,166.03,27.83594657]
[1730479668447,27.83594657,166.09,166.04,27.83594657]
[1730479669956,27.83594657,166.07,166.02,27.83594657]
[1730479670256,27.83594657,166.06,166.01,48.91894657]
[1730479670457,27.83594657,166.03,166.0,23.776884]
[1730479670658,27.83594657,166.04,166.0,23.776884]
[1730479671160,27.83594657,166.05,166.0,51.61283057]
[1730479671552,27.83594657,166.06,166.01,27.83594657]
[1730479671753,27.83594657,166.06,166.0,23.776884]
[1730479671754,27.83594657,166.09,166.03,27.83594657]
[1730479671959,27.83594657,166.08,166.03,27.83594657]
[1730479672163,27.83594657,166.07,166.02,33.85894657]
[1730479673452,27.83594657,166.06,166.02,23.776884]
[1730479673665,27.83594657,166.07,166.02,51.61283057]
[1730479674662,6.0208,166.09,166.04,27.83594657]
[1730479675354,27.83594657,166.08,166.04,6.0226]
[1730479676066,27.83594657,166.09,166.05,23.776884]
[1730479676446,27.83594657,166.07,166.02,27.83594657]
[1730479676768,27.83594657,166.07,166.03,23.776884]
[1730479677362,27.83594657,166.06,166.03,23.776884]
[1730479677678,27.83594657,166.04,166.0,23.776884]
[1730479677852,27.83594657,166.04,165.99,33.86034657]
[1730479678267,21.0743,166.08,166.0,27.83594657]
[1730479678476,33.85734657,166.08,166.03,27.83594657]
[1730479678663,6.0214,166.08,166.04,27.83594657]
[1730479678984,33.85734657,166.08,166.02,27.83594657]
[1730479679474,6.0209,166.09,166.04,33.85854657]
[1730479679855,27.83594657,166.1,166.05,23.776884]
[1730479679856,33.85664657,166.1,166.05,23.776884]
[1730479680268,27.83594657,166.11,166.05,51.61283057]
[1730479680453,27.83594657,166.09,166.05,23.776884]
[1730479680655,27.83594657,166.1,166.05,23.776884]
[1730479680867,27.83594657,166.1,166.05,51.61283057]
[1730479681052,27.83594657,166.11,166.06,27.96143657]
[1730479681253,16.8928955,166.15,166.04,21.0792]
[1730479681254,33.85504657,166.14,166.09,27.83594657]
[1730479681559,0.6134955,166.15,166.1,51.61283057]
[1730479681773,0.6134955,166.15,166.11,27.83594657]
[1730479682355,0.6134955,166.15,166.12,27.83594657]
[1730479682668,27.83594657,166.18,166.13,23.776884]
[1730479683166,27.83594657,166.19,166.14,27.83594657]
[1730479683352,27.83594657,166.22,166.17,27.83594657]
[1730479683554,6.0627,166.28,166.2,27.83594657]
[1730479683555,27.83594657,166.25,166.2,27.83594657]
[1730479683854,27.83594657,166.24,166.2,23.776884]
[1730479684052,27.83594657,166.23,166.2,23.776884]
[1730479684257,27.83594657,166.24,166.19,51.61283057]
[1730479684466,27.83594657,166.26,166.21,27.83594657]
[1730479684666,27.83594657,166.26,166.22,23.776884]
[1730479685064,27.83594657,166.24,166.19,51.61283057]
[1730479685575,27.83594657,166.24,166.19,57.62973057]
[1730479686068,27.83594657,166.22,166.19,23.776884]
[1730479686469,6.0135,166.29,166.2,27.83594657]
[1730479686676,27.83594657,166.23,166.19,29.793984]
[1730479687178,27.83594657,166.22,166.19,23.776884]
[1730479687575,27.83594657,166.23,166.19,23.776884]
[1730479687875,27.83594657,166.25,166.2,27.83594657]
[1730479688084,27.83594657,166.24,166.19,57.62993057]
[1730479688252,27.83594657,166.24,166.2,0.12549]
[1730479688458,27.83594657,166.23,166.19,44.836984]
[1730479689570,27.83594657,166.21,166.19,44.836984]
[1730479689777,27.83594657,166.23,166.19,44.836984]
[1730479689973,33.85134657,166.24,166.19,44.836984]
[1730479690274,27.83594657,166.23,166.19,44.836984]
[1730479690471,27.83594657,166.25,166.2,27.96143657]
[1730479690679,27.83594657,166.26,166.23,23.776884]
[1730479690971,6.0139,166.28,166.2,23.776884]
[1730479690972,27.83594657,166.24,166.2,23.776884]
[1730479691163,6.0139,166.28,166.2,51.61283057]
[1730479691475,27.83594657,166.24,166.2,29.793484]
[1730479691857,27.83594657,166.22,166.2,23.776884]
[1730479692067,27.83594657,166.23,166.2,23.776884]
[1730479692554,27.83594657,166.24,166.2,23.776884]
[1730479692758,27.83594657,166.26,166.2,51.61283057]
[1730479693170,27.83594657,166.26,166.21,27.96143657]
[1730479693378,27.83594657,166.25,166.21,6.14159]
[1730479693551,27.83594657,166.25,166.2,66.65493057]
[1730479693552,27.83594657,166.23,166.2,38.818984]
[1730479693755,27.83594657,166.24,166.21,0.12549]
[1730479694074,33.84914657,166.3,166.24,23.776884]
[1730479694256,0.6134955,166.32,166.28,23.776884]
[1730479694858,28.44944207,166.32,166.29,0.12549]
[1730479695059,0.6134955,166.32,166.29,0.12549]
[1730479695460,0.6134955,166.32,166.31,23.776884]
[1730479696182,0.6134955,166.32,166.31,23.902374]
[1730479696364,0.6134955,166.32,166.31,51.86381057]
[1730479697173,0.6134955,166.32,166.31,71.86381057]
[1730479697563,0.6134955,166.32,166.31,77.87661057]
[1730479698083,0.6134955,166.32,166.31,78.00210057]
[1730479698580,0.6134955,166.32,166.31,84.13260057]
[1730479699262,0.6134955,166.32,166.31,111.96854714]
[1730479699458,0.6134955,166.32,166.31,113.17029779]
[1730479699882,27.83594657,166.42,166.32,20.37647]
[1730479700084,33.84414657,166.44,166.4,0.12549]
[1730479700276,27.83594657,166.43,166.4,0.12549]
[1730479700694,27.83594657,166.46,166.41,27.83594657]
[1730479700983,6.0072,166.47,166.44,0.12549]
[1730479701189,0.6134955,166.48,166.45,0.12549]
[1730479701574,34.45624207,166.48,166.45,0.12549]
[1730479701768,27.83594657,166.46,166.4,6.3888]
[1730479701964,34.45624207,166.48,166.4,6.3888]
[1730479701965,27.83594657,166.45,166.41,23.776884]
[1730479702192,27.83594657,166.47,166.42,27.96143657]
[1730479702388,6.6202955,166.48,166.45,23.776884]
[1730479702691,34.45624207,166.48,166.45,23.776884]
[1730479702886,28.44944207,166.48,166.44,23.902374]
[1730479703388,0.6134955,166.48,166.44,51.73832057]
[1730479703593,0.6134955,166.48,166.46,23.902374]
[1730479703767,0.6134955,166.48,166.46,23.776884]
[1730479703966,34.45614207,166.48,166.46,23.776884]
[1730479704171,28.44944207,166.48,166.46,23.776884]
[1730479704587,27.83594657,166.47,166.41,27.83594657]
[1730479704774,27.83594657,166.46,166.42,43.776884]
[1730479705095,0.6134955,166.48,166.45,51.73832057]
[1730479705395,0.6134955,166.48,166.47,51.86381057]
[1730479705701,0.6134955,166.48,166.47,24.027864]
[1730479705873,0.6134955,166.48,166.47,51.86381057]
[1730479706399,0.6134955,166.48,166.47,57.99630057]
[1730479707307,0.6134955,166.48,166.47,93.98830057]
[1730479708492,0.6134955,166.48,166.47,121.82424714]
[1730479708894,21.2221,166.62,166.48,44.153354]
[1730479708895,27.83594657,166.62,166.48,44.153354]
[1730479709200,27.83594657,166.62,166.58,23.902374]
[1730479709600,27.83594657,166.6,166.58,23.902374]
[1730479709805,21.0033,166.64,166.53,15.012]
[1730479710102,27.83594657,166.58,166.55,0.12549]
[1730479710294,21.0033,166.64,166.57,0.12549]
[1730479710295,27.83594657,166.61,166.57,0.12549]
[1730479710488,6.0009,166.64,166.57,0.12549]
[1730479710678,27.83594657,166.61,166.58,23.776884]
[1730479710877,27.83594657,166.59,166.58,23.776884]
[1730479711601,0.6134955,166.65,166.58,23.776884]
[1730479711602,27.83594657,166.62,166.58,23.902374]
[1730479711812,27.83594657,166.61,166.58,0.12549]
[1730479712101,27.83594657,166.6,166.58,0.12549]
[1730479712279,27.83594657,166.61,166.58,0.12549]
[1730479712609,27.83594657,166.6,166.58,0.12549]
[1730479713094,27.83594657,166.59,166.53,27.83594657]
[1730479713303,27.83594657,166.59,166.5,15.0143]
[1730479713304,27.83594657,166.56,166.51,27.83594657]
[1730479713477,27.83594657,166.64,166.5,15.0143]
[1730479713478,27.83594657,166.55,166.5,48.85624657]
[1730479713683,27.83594657,166.55,166.5,42.85024657]
[1730479713893,6.0038,166.56,166.49,6.006]
[1730479713894,27.83594657,166.54,166.49,27.83594657]
[1730479714099,27.83594657,166.55,166.5,27.83594657]
[1730479714513,27.83594657,166.55,166.51,0.12549]
[1730479714796,27.83594657,166.53,166.48,27.83594657]
[1730479714985,27.83594657,166.54,166.49,27.83594657]
[1730479715501,27.83594657,166.56,166.52,0.12549]
[1730479715977,27.83594657,166.55,166.52,0.12549]
[1730479716182,27.83594657,166.54,166.51,23.902374]
[1730479716397,27.83594657,166.54,166.51,0.12549]
[1730479716707,27.83594657,166.58,166.53,27.96143657]
[1730479716878,27.83594657,166.56,166.53,0.12549]
[1730479717206,27.83594657,166.59,166.54,27.83594657]
[1730479717388,27.83594657,166.59,166.55,23.776884]
[1730479717581,27.83594657,166.58,166.55,23.776884]
[1730479717890,27.83594657,166.57,166.54,23.776884]
[1730479718095,27.83594657,166.57,166.53,23.902374]
[1730479718291,27.83594657,166.54,166.49,27.83594657]
[1730479718609,27.83594657,166.53,166.48,48.85924657]
[1730479718783,27.83594657,166.54,166.49,27.96143657]
[1730479719197,27.83594657,166.51,166.46,27.83594657]
[1730479719414,49.73304657,166.56,166.44,21.0273]
[1730479719415,27.83594657,166.47,166.44,21.0273]
[1730479719582,27.83594657,166.46,166.42,6.5518]
[1730479719788,27.83594657,166.45,166.42,0.12549]
[1730479720307,27.83594657,166.46,166.42,0.12549]
[1730479720685,27.83594657,166.46,166.41,48.86814657]
[1730479721196,27.83594657,166.46,166.42,26.0086]
[1730479722091,27.83594657,166.46,166.43,23.902374]
[1730479722293,27.83594657,166.45,166.43,0.12549]
[1730479722493,27.83594657,166.45,166.41,21.0323]
[1730479722697,27.83594657,166.46,166.41,48.86824657]
[1730479723414,27.83594657,166.44,166.41,21.0323]
[1730479723586,27.83594657,166.42,166.37,42.84284657]
[1730479723785,27.83594657,166.42,166.36,6.25751455]
[1730479723786,27.83594657,166.38,166.36,6.25751455]
[1730479724017,27.83594657,166.37,166.32,6.0124]
[1730479724210,27.83594657,166.34,166.3,21.4327]
[1730479724413,27.83594657,166.35,166.32,6.26427862]
[1730479724598,27.83594657,166.36,166.32,6.26427862]
[1730479724916,27.83594657,166.37,166.33,0.12549]
[1730479725290,21.0348,166.39,166.32,6.26427862]
[1730479725598,27.83594657,166.33,166.26,21.0505]
[1730479725789,27.83594657,166.3,166.27,6.26533394]
[1730479726391,27.83594657,166.3,166.28,0.12549]
[1730479726890,27.83594657,166.3,166.27,6.26533394]
[1730479727301,6.0129,166.31,166.27,34.10128051]
[1730479727915,6.0129,166.31,166.28,23.776884]
[1730479728212,27.83594657,166.29,166.24,27.83594657]
[1730479728402,27.83594657,166.28,166.23,48.89094657]
[1730479728708,27.83594657,166.28,166.23,55.15803454]
[1730479728923,33.84964657,166.29,166.24,27.96143657]
[1730479729211,27.83594657,166.33,166.27,27.83594657]
[1730479729390,27.83594657,166.34,166.29,27.83594657]
[1730479729588,27.83594657,166.35,166.3,51.61283057]
[1730479729815,27.83594657,166.34,166.29,27.83594657]
[1730479730200,27.83594657,166.34,166.25,0.12549]
[1730479730201,33.84694657,166.36,166.31,27.83594657]
[1730479730394,27.83594657,166.38,166.33,23.776884]
[1730479730616,27.83594657,166.37,166.33,23.776884]
[1730479730793,27.83594657,166.38,166.33,51.61283057]
[1730479730988,33.84554657,166.4,166.34,27.83594657]
[1730479731190,33.84554657,166.4,166.33,23.776884]
[1730479731191,27.83594657,166.37,166.33,23.776884]
[1730479731491,27.83594657,166.35,166.33,23.776884]
[1730479731690,27.83594657,166.35,166.31,23.776884]
[1730479731894,27.83594657,166.33,166.28,27.83594657]
[1730479732195,27.83594657,166.32,166.28,23.776884]
[1730479732509,6.0128,166.31,166.28,23.776884]
[1730479732718,6.0128,166.31,166.28,51.61283057]
[1730479732909,6.0125,166.32,166.28,51.61283057]
[1730479735596,33.84844657,166.32,166.28,23.776884]
[1730479735913,33.84844657,166.32,166.28,51.61283057]
[1730479736120,6.0125,166.32,166.28,51.61283057]
[1730479736620,33.84844657,166.32,166.28,23.776884]
[1730479737193,33.84844657,166.32,166.27,27.83594657]
[1730479737920,6.0125,166.32,166.29,27.83594657]
[1730479738099,33.84794657,166.34,166.29,27.83594657]
[1730479738721,27.83594657,166.33,166.28,27.83594657]
[1730479739206,27.83594657,166.34,166.29,27.83594657]
[1730479739527,27.83594657,166.36,166.31,27.83594657]
[1730479739739,27.83594657,166.36,166.3,27.83594657]
[1730479739909,27.83594657,166.34,166.29,27.83594657]
[1730479740229,27.83594657,166.33,166.28,27.83594657]
[1730479740430,21.0348,166.39,166.26,21.17669]
[1730479740431,27.83594657,166.32,166.27,51.61283057]
[1730479740634,30.0,166.31,166.27,51.61283057]
[1730479741007,30.0,166.31,166.29,27.83594657]
[1730479741207,27.83594657,166.38,166.31,23.776884]
[1730479741408,33.84554657,166.4,166.35,27.83594657]
[1730479741709,30.0,166.36,166.33,27.83594657]
[1730479742325,6.0099,166.39,166.35,27.83594657]
[1730479742515,33.84584657,166.39,166.34,27.83594657]
[1730479742832,33.84584657,166.39,166.33,23.776884]
[1730479742833,6.0099,166.39,166.35,27.83594657]
[1730479743131,33.84584657,166.39,166.34,27.83594657]
[1730479744631,27.83594657,166.36,166.28,15.5124]
[1730479744812,27.83594657,166.34,166.29,27.83594657]
[1730479745014,21.0348,166.39,166.27,6.0139]
[1730479745015,27.83594657,166.33,166.27,27.83594657]
[1730479745333,27.83594657,166.33,166.28,27.83594657]
[1730479745633,27.83594657,166.37,166.32,27.83594657]
[1730479746318,27.83594657,166.36,166.31,27.83594657]
[1730479747231,27.83594657,166.34,166.3,23.776884]
[1730479747446,27.83594657,166.32,166.26,27.83594657]
[1730479747651,27.83594657,166.33,166.28,27.83594657]
[1730479747848,6.0114,166.35,166.3,27.83594657]
[1730479748451,27.83594657,166.32,166.28,0.12549]
[1730479748836,27.83594657,166.33,166.29,23.776884]
[1730479749516,6.0125,166.32,166.29,23.776884]